[Event "24th Hoogeschool Zeeland 2022"]
[Site "Vlissingen"]
[Date "2022.08.08"]
[Round "4.10"]
[White "Van Delft, Merijn"]
[Black "Bazilius, Augustinas"]
[Result "1-0"]
[ECO "C41"]
[WhiteElo "2383"]
[BlackElo "2045"]
[Annotator "RC"]
[PlyCount "83"]
[EventDate "2022.08.05"]
[EventType "swiss"]
[EventCountry "NED"]
[SourceTitle "playchess.com"]
[Source "ChessBase"]
[SourceQuality "1"]
[TimeControl "40/5400+30:1800+30"]

1. e4 {[%emt 0:00:05]} d6 {[%emt 0:00:35]} 2. d4 {[%emt 0:00:16]} Nf6 {[%emt 0:00:10]} 3. Nc3 {[%emt 0:00:06]} e5 {[%emt 0:00:08]} 4. Nf3 {[%emt 0:00:24]} exd4 {[%emt 0:01:35]} 5. Nxd4 {[%emt 0:02:06]} Be7 {[%emt 0:00:51]} 6. g3 {[%emt 0:01:06]} O-O {[%emt 0:01:17]} 7. Bg2 {[%emt 0:00:25]} Re8 {[%emt 0:00:56]} 8. O-O {[%emt 0:00:45]} Bf8 {[%emt 0:00:19]} 9. h3 {[%emt 0:00:58]} Nc6 {[%emt 0:00:14]} 10. Nde2 {[%emt 0:01:13]} Ne5 {[%emt 0:00:10]} 11. b3 {[%emt 0:06:14]} c6 {[%emt 0:10:34]} 12. a4 {[%emt 0:07:02]} a5 {[%emt 0:04:24]} 13. Ba3 {[%emt 0:07:37]} Qc7 {[%emt 0:13:26]} 14. Kh1 {[%emt 0:08:47]} Bd7 {[%emt 0:02:09]} 15. f4 {[%emt 0:12:03]} Ng6 {[%emt 0:00:33]} 16. Nd4 {[%emt 0:01:13]} Rad8 {[%emt 0:06:36]} 17. Qd2 {[%emt 0:01:39]} Bc8 {[%emt 0:19:56]} 18. Rae1 {[%emt 0:04:27]} Qb6 {[%emt 0:05:18]} 19. Qf2 {[%emt 0:08:11]} d5 {[%emt 0:12:05]} 20. Bxf8 {[%emt 0:00:19]} Nxf8 {[%emt 0:00:18]} 21. exd5 {[%emt 0:02:43]} Rxe1 {[%emt 0:01:58]} 22. Rxe1 {[%emt 0:00:31]} Qc5 {[%emt 0:01:52]} 23. Qd2 {[%emt 0:03:20]} Nxd5 {[%emt 0:01:35]} 24. Nxd5 {[%emt 0:01:26]} Rxd5 {[%emt 0:00:01]} 25. Bxd5 {[%emt 0:08:58]} Qxd5+ {[%emt 0:00:25]} 26. Kg1 {[%emt 0:00:16]} c5 {[%emt 0:00:43]} 27. Re5 {[%emt 0:01:06]} Qxd4+ {[%emt 0:00:52]} 28. Qxd4 {[%emt 0:00:20]} cxd4 {[%emt 0:00:02]} 29. Rxa5 {[%emt 0:04:17]} Bxh3 {[%emt 0:02:51]} 30. Rd5 {[%emt 0:00:22]} Nd7 {[%emt 0:03:54]} 31. Rxd4 {[%emt 0:00:45]} Kf8 {[%emt 0:00:48]} 32. a5 {[%emt 0:06:38]} Bf5 {[%emt 0:05:12]} 33. Rb4 {[%emt 0:03:14]} Bxc2 {[%emt 0:00:59]} 34. Rxb7 {[%emt 0:00:13]} Ke7 {[%emt 0:03:11]} 35. a6 {[%emt 0:01:47]} Be4 {[%emt 0:00:36]} 36. Rb4 {[%emt 0:00:07]} Bd5 {[%emt 0:01:17]} 37. a7 {[%emt 0:00:13]} Kd6 {[%emt 0:00:37]} 38. Rb8 {[%emt 0:00:24]} Nc5 {[%emt 0:00:08]} 39. Rd8+ {[%emt 0:01:34]} Nd7 {[%emt 0:00:42]} 40. a8=Q {[%emt 0:07:20]} Bxa8 {[%emt 0:00:12]} 41. Rxa8 {[%emt 0:23:07]} Kc6 {[%emt 0:02:11]} 42. Rg8 {[%emt 0:00:00]} 1-0

[Event "24th Hoogeschool Zeeland 2022"]
[Site "Vlissingen"]
[Date "2022.08.08"]
[Round "4.11"]
[White "Lohr, Maximilian"]
[Black "Grutter, Tim"]
[Result "0-1"]
[ECO "B48"]
[WhiteElo "2092"]
[BlackElo "2246"]
[Annotator "RC"]
[PlyCount "138"]
[EventDate "2022.08.05"]
[EventType "swiss"]
[EventCountry "NED"]
[SourceTitle "playchess.com"]
[Source "ChessBase"]
[SourceQuality "1"]
[TimeControl "40/5400+30:1800+30"]

1. e4 {[%emt 0:02:48]} c5 {[%emt 0:00:07]} 2. Nf3 {[%emt 0:00:09]} e6 {[%emt 0:00:06]} 3. d4 {[%emt 0:00:10]} cxd4 {[%emt 0:00:04]} 4. Nxd4 {[%emt 0:00:04]} Nc6 {[%emt 0:00:04]} 5. Nc3 {[%emt 0:00:08]} Qc7 {[%emt 0:00:04]} 6. Be3 {[%emt 0:00:06]} a6 {[%emt 0:00:04]} 7. Qf3 {[%emt 0:00:08]} b5 {[%emt 0:00:21]} 8. O-O-O {[%emt 0:02:23]} Bb7 {[%emt 0:05:30]} 9. Qg3 {[%emt 0:19:45]} Qxg3 {[%emt 0:00:21]} 10. hxg3 {[%emt 0:00:07]} Nxd4 {[%emt 0:00:18]} 11. Rxd4 {[%emt 0:00:09]} Bc5 {[%emt 0:00:42]} 12. Rd3 {[%emt 0:00:21]} Bxe3+ {[%emt 0:00:32]} 13. Rxe3 {[%emt 0:00:08]} Nf6 {[%emt 0:05:05]} 14. f3 {[%emt 0:01:09]} d5 {[%emt 0:02:39]} 15. exd5 {[%emt 0:00:28]} Nxd5 {[%emt 0:00:10]} 16. Nxd5 {[%emt 0:00:13]} Bxd5 {[%emt 0:00:02]} 17. Bd3 {[%emt 0:00:36]} h5 {[%emt 0:11:18]} 18. Be4 {[%emt 0:03:31]} O-O-O {[%emt 0:02:50]} 19. Rd1 {[%emt 0:04:55]} Bxe4 {[%emt 0:01:14]} 20. Rxd8+ {[%emt 0:01:40]} Rxd8 {[%emt 0:00:27]} 21. Rxe4 {[%emt 0:00:04]} Rd5 {[%emt 0:01:27]} 22. g4 {[%emt 0:03:45]} Rg5 {[%emt 0:04:02]} 23. gxh5 {[%emt 0:05:50]} Rxh5 {[%emt 0:05:30]} 24. Rd4 {[%emt 0:03:12]} Kc7 {[%emt 0:03:29]} 25. c3 {[%emt 0:00:42]} e5 {[%emt 0:02:29]} 26. Rd2 {[%emt 0:02:55]} Rh4 {[%emt 0:03:26]} 27. Kc2 {[%emt 0:00:59]} g5 {[%emt 0:04:29]} 28. Kd1 {[%emt 0:05:48]} g4 {[%emt 0:02:26]} 29. fxg4 {[%emt 0:09:27]} Rxg4 {[%emt 0:00:12]} 30. Ke1 {[%emt 0:00:08]} f5 {[%emt 0:03:37]} 31. Kf2 {[%emt 0:00:40]} f4 {[%emt 0:08:31]} 32. Kf3 {[%emt 0:13:50]} Rg3+ {[%emt 0:00:36]} 33. Ke4 {[%emt 0:00:04]} Re3+ {[%emt 0:00:06]} 34. Kf5 {[%emt 0:00:05]} Kc6 {[%emt 0:01:10]} 35. Kg4 {[%emt 0:05:00]} Kc5 {[%emt 0:00:57]} 36. Kf5 {[%emt 0:00:18]} a5 {[%emt 0:03:43]} 37. Kg4 {[%emt 0:02:07]} Kc4 {[%emt 0:30:52]} 38. Kf5 {[%emt 0:00:16]} a4 {[%emt 0:00:00]} 39. a3 {[%emt 0:00:12]} Kb3 {[%emt 0:00:00]} 40. Kg4 {[%emt 0:03:04]} Ka2 {[%emt 0:00:00]} 41. Kf5 {[%emt 0:30:05]} Kb1 {[%emt 0:07:58]} 42. Kg4 {[%emt 0:01:03]} Kc1 {[%emt 0:05:18]} 43. Rf2 {[%emt 0:00:05]} Kd1 {[%emt 0:03:39]} 44. Kf5 {[%emt 0:01:06]} Re1 {[%emt 0:01:02]} 45. Kg4 {[%emt 0:11:21]} Re4 {[%emt 0:01:56]} 46. Kf5 {[%emt 0:00:00]} Re3 {[%emt 0:00:00]} 47. Kg4 {[%emt 0:00:00]} Re1 {[%emt 0:00:00]} 48. Kf5 {[%emt 0:00:00]} Re3 {[%emt 0:00:00]} 49. Kg4 {[%emt 0:00:00]} Ke1 {[%emt 0:00:00]} 50. Rc2 {[%emt 0:00:00]} Kf1 {[%emt 0:00:00]} 51. Kf5 {[%emt 0:00:00]} Re1 {[%emt 0:00:00]} 52. Kg4 {[%emt 0:00:00]} Kg1 {[%emt 0:00:48]} 53. g3 {[%emt 0:00:00]} fxg3 {[%emt 0:05:20]} 54. Kf3 {[%emt 0:00:00]} Kf1 {[%emt 0:00:57]} 55. Kxg3 {[%emt 0:00:00]} Re2 {[%emt 0:00:36]} 56. Rc1+ {[%emt 0:00:00]} Re1 {[%emt 0:00:00]} 57. Rc2 {[%emt 0:00:00]} Re3+ {[%emt 0:00:14]} 58. Kg4 {[%emt 0:00:00]} Re2 {[%emt 0:00:40]} 59. Rxe2 {[%emt 0:00:00]} Kxe2 {[%emt 0:12:32]} 60. Kf5 {[%emt 0:00:00]} Kd3 {[%emt 0:00:00]} 61. Kxe5 {[%emt 0:00:00]} Kc2 {[%emt 0:00:00]} 62. Kd4 {[%emt 0:00:00]} Kxb2 {[%emt 0:00:00]} 63. c4 {[%emt 0:00:00]} b4 {[%emt 0:00:00]} 64. c5 {[%emt 0:00:00]} bxa3 {[%emt 0:00:00]} 65. c6 {[%emt 0:00:00]} a2 {[%emt 0:00:00]} 66. c7 {[%emt 0:00:00]} a1=Q {[%emt 0:00:00]} 67. c8=Q {[%emt 0:00:00]} Qd1+ {[%emt 0:00:00]} 68. Ke5 {[%emt 0:00:00]} Qe2+ {[%emt 0:00:00]} 69. Kd5 {[%emt 0:00:00]} Qd3+ {[%emt 0:00:00]} 0-1

[Event "24th Hoogeschool Zeeland 2022"]
[Site "Vlissingen"]
[Date "2022.08.08"]
[Round "4.12"]
[White "Marzano, Carlo"]
[Black "Stillger, Bernhard"]
[Result "1/2-1/2"]
[ECO "A48"]
[WhiteElo "2079"]
[BlackElo "2245"]
[Annotator "RC"]
[PlyCount "31"]
[EventDate "2022.08.05"]
[EventType "swiss"]
[EventCountry "NED"]
[SourceTitle "playchess.com"]
[Source "ChessBase"]
[SourceQuality "1"]
[TimeControl "40/5400+30:1800+30"]

1. d4 {[%emt 0:00:03]} Nf6 {[%emt 0:00:05]} 2. Nf3 {[%emt 0:00:03]} g6 {[%emt 0:00:19]} 3. Nbd2 {[%emt 0:00:05]} c5 {[%emt 0:00:53]} 4. c3 {[%emt 0:02:36]} cxd4 {[%emt 0:05:06]} 5. cxd4 {[%emt 0:00:15]} d5 {[%emt 0:00:37]} 6. e3 {[%emt 0:00:41]} Bg7 {[%emt 0:08:42]} 7. Be2 {[%emt 0:02:07]} O-O {[%emt 0:01:01]} 8. b4 {[%emt 0:05:26]} Bf5 {[%emt 0:14:33]} 9. Bb2 {[%emt 0:07:12]} Nbd7 {[%emt 0:04:23]} 10. O-O {[%emt 0:06:06]} Ne4 {[%emt 0:05:41]} 11. Qb3 {[%emt 0:03:09]} Nb6 {[%emt 0:06:09]} 12. a4 {[%emt 0:07:01]} Bg4 {[%emt 0:03:25]} 13. Bd3 {[%emt 0:04:00]} Bf5 {[%emt 0:04:39]} 14. Be2 {[%emt 0:02:37]} Bg4 {[%emt 0:00:07]} 15. Bd3 {[%emt 0:00:18]} Bf5 {[%emt 0:01:04]} 16. Be2 {[%emt 0:00:50]} 1/2-1/2

[Event "24th Hoogeschool Zeeland 2022"]
[Site "Vlissingen"]
[Date "2022.08.08"]
[Round "4.13"]
[White "De Jong, Tom"]
[Black "Tibke, Jonas"]
[Result "1-0"]
[ECO "B12"]
[WhiteElo "2203"]
[BlackElo "1961"]
[Annotator "RC"]
[PlyCount "65"]
[EventDate "2022.08.05"]
[EventType "swiss"]
[EventCountry "NED"]
[SourceTitle "playchess.com"]
[Source "ChessBase"]
[SourceQuality "1"]
[TimeControl "40/5400+30:1800+30"]

1. e4 {[%emt 0:00:03]} c6 {[%emt 0:00:04]} 2. d4 {[%emt 0:00:17]} d5 {[%emt 0:00:05]} 3. e5 {[%emt 0:00:32]} Bf5 {[%emt 0:00:06]} 4. h4 {[%emt 0:00:14]} h5 {[%emt 0:00:37]} 5. Bd3 {[%emt 0:00:10]} Bxd3 {[%emt 0:00:09]} 6. Qxd3 {[%emt 0:00:09]} e6 {[%emt 0:00:12]} 7. Bg5 {[%emt 0:02:08]} Qb6 {[%emt 0:01:50]} 8. Nd2 {[%emt 0:02:13]} c5 {[%emt 0:01:43]} 9. c4 {[%emt 0:01:15]} cxd4 {[%emt 0:03:44]} 10. cxd5 {[%emt 0:06:29]} exd5 {[%emt 0:02:18]} 11. Ngf3 {[%emt 0:01:00]} Nc6 {[%emt 0:04:47]} 12. O-O {[%emt 0:06:10]} Nb4 {[%emt 0:05:06]} 13. Qb3 {[%emt 0:06:10]} a5 {[%emt 0:06:48]} 14. a3 {[%emt 0:07:57]} a4 {[%emt 0:05:07]} 15. axb4 {[%emt 0:01:32]} axb3 {[%emt 0:05:24]} 16. Rxa8+ {[%emt 0:00:10]} Kd7 {[%emt 0:00:09]} 17. Rxf8 {[%emt 0:02:28]} f6 {[%emt 0:05:45]} 18. Bf4 {[%emt 0:06:50]} Qxb4 {[%emt 0:03:29]} 19. Rb8 {[%emt 0:02:35]} d3 {[%emt 0:10:58]} 20. g3 {[%emt 0:02:22]} g5 {[%emt 0:05:12]} 21. hxg5 {[%emt 0:09:02]} fxg5 {[%emt 0:03:59]} 22. Nxg5 {[%emt 0:14:11]} h4 {[%emt 0:02:15]} 23. e6+ {[%emt 0:08:04]} Ke7 {[%emt 0:00:36]} 24. Nf7 {[%emt 0:02:28]} Kxe6 {[%emt 0:01:55]} 25. Nxh8 {[%emt 0:01:30]} hxg3 {[%emt 0:00:35]} 26. Ng6 {[%emt 0:04:52]} Nf6 {[%emt 0:02:16]} 27. fxg3 {[%emt 0:03:39]} Qd4+ {[%emt 0:02:23]} 28. Kg2 {[%emt 0:02:44]} Qxb2 {[%emt 0:05:59]} 29. Re1+ {[%emt 0:00:20]} Ne4 {[%emt 0:02:43]} 30. Rxb7 {[%emt 0:03:48]} Kf5 {[%emt 0:01:00]} 31. Nh4+ {[%emt 0:00:48]} Kg4 {[%emt 0:00:36]} 32. Rxe4 {[%emt 0:02:08]} dxe4 {[%emt 0:00:42]} 33. Rb5 {[%emt 0:00:02]} 1-0

[Event "24th Hoogeschool Zeeland 2022"]
[Site "Vlissingen"]
[Date "2022.08.08"]
[Round "4.14"]
[White "Van der Borgt, Peter"]
[Black "Honkoop, Gilian"]
[Result "1/2-1/2"]
[ECO "C47"]
[WhiteElo "1959"]
[BlackElo "2205"]
[Annotator "RC"]
[PlyCount "94"]
[EventDate "2022.08.05"]
[EventType "swiss"]
[EventCountry "NED"]
[SourceTitle "playchess.com"]
[Source "ChessBase"]
[SourceQuality "1"]
[TimeControl "40/5400+30:1800+30"]

1. e4 {[%emt 0:00:05]} e5 {[%emt 0:00:02]} 2. Nf3 {[%emt 0:00:09]} Nc6 {[%emt 0:00:03]} 3. d4 {[%emt 0:00:12]} exd4 {[%emt 0:00:04]} 4. Nxd4 {[%emt 0:00:29]} Nf6 {[%emt 0:00:05]} 5. Nc3 {[%emt 0:01:08]} Bb4 {[%emt 0:00:04]} 6. Nxc6 {[%emt 0:01:02]} bxc6 {[%emt 0:00:05]} 7. Bd3 {[%emt 0:01:01]} d5 {[%emt 0:00:16]} 8. exd5 {[%emt 0:00:19]} cxd5 {[%emt 0:00:05]} 9. O-O {[%emt 0:01:42]} O-O {[%emt 0:00:03]} 10. Bg5 {[%emt 0:00:43]} c6 {[%emt 0:00:10]} 11. Qf3 {[%emt 0:03:24]} h6 {[%emt 0:01:00]} 12. Bxf6 {[%emt 0:07:38]} Qxf6 {[%emt 0:00:05]} 13. Qxf6 {[%emt 0:00:08]} gxf6 {[%emt 0:00:02]} 14. Ne2 {[%emt 0:02:39]} Re8 {[%emt 0:06:42]} 15. c3 {[%emt 0:09:57]} Bf8 {[%emt 0:02:36]} 16. Rfe1 {[%emt 0:10:10]} Bd7 {[%emt 0:01:56]} 17. Nf4 {[%emt 0:05:24]} Re5 {[%emt 0:03:26]} 18. h3 {[%emt 0:04:36]} Bd6 {[%emt 0:06:24]} 19. g3 {[%emt 0:06:06]} Rae8 {[%emt 0:04:04]} 20. Red1 {[%emt 0:05:00]} Rg5 {[%emt 0:23:20]} 21. h4 {[%emt 0:06:28]} Rge5 {[%emt 0:00:29]} 22. Kf1 {[%emt 0:33:10]} Rb8 {[%emt 0:19:00]} 23. Rab1 {[%emt 0:00:00]} a5 {[%emt 0:06:03]} 24. Bc2 {[%emt 0:00:00]} Bg4 {[%emt 0:01:44]} 25. Rd2 {[%emt 0:00:00]} Rbe8 {[%emt 0:00:35]} 26. Ba4 {[%emt 0:00:00]} Rc8 {[%emt 0:00:14]} 27. Bc2 {[%emt 0:00:00]} Rb8 {[%emt 0:01:38]} 28. Ba4 {[%emt 0:00:00]} Rb6 {[%emt 0:01:45]} 29. Bc2 {[%emt 0:00:00]} Rb7 {[%emt 0:01:32]} 30. Ba4 {[%emt 0:00:00]} Rc7 {[%emt 0:00:11]} 31. Bc2 {[%emt 0:00:00]} Rce7 {[%emt 0:00:01]} 32. Ba4 {[%emt 0:02:03]} Bd7 {[%emt 0:00:01]} 33. Bc2 {[%emt 0:00:37]} Kf8 {[%emt 0:00:02]} 34. a3 {[%emt 0:01:16]} Bc8 {[%emt 0:03:12]} 35. Rbd1 {[%emt 0:00:49]} Rb7 {[%emt 0:01:31]} 36. Bd3 {[%emt 0:00:36]} Rb6 {[%emt 0:00:45]} 37. Be2 {[%emt 0:00:26]} Re7 {[%emt 0:06:56]} 38. Nh5 {[%emt 0:00:39]} Rxe2 {[%emt 0:01:40]} 39. Rxe2 {[%emt 0:00:00]} Bg4 {[%emt 0:00:05]} 40. Re8+ {[%emt 0:00:22]} Kxe8 {[%emt 0:00:14]} 41. Nxf6+ {[%emt 0:30:02]} Kf8 {[%emt 0:31:05]} 42. Nxg4 {[%emt 0:00:06]} h5 {[%emt 0:00:00]} 43. Ne3 {[%emt 0:00:00]} Rxb2 {[%emt 0:00:00]} 44. Nc4 {[%emt 0:00:00]} dxc4 {[%emt 0:00:00]} 45. Rxd6 {[%emt 0:00:00]} Rb3 {[%emt 0:00:00]} 46. Rxc6 {[%emt 0:00:00]} Rxc3 {[%emt 0:00:00]} 47. a4 {[%emt 0:00:00]} Kg7 {[%emt 0:00:00]} 1/2-1/2

[Event "24th Hoogeschool Zeeland 2022"]
[Site "Vlissingen"]
[Date "2022.08.08"]
[Round "4.15"]
[White "Haak, Eelco"]
[Black "Jeanne, Mickael"]
[Result "0-1"]
[ECO "A28"]
[WhiteElo "1962"]
[BlackElo "2145"]
[Annotator "RC"]
[PlyCount "80"]
[EventDate "2022.08.05"]
[EventType "swiss"]
[EventCountry "NED"]
[SourceTitle "playchess.com"]
[Source "ChessBase"]
[SourceQuality "1"]
[TimeControl "40/5400+30:1800+30"]

1. c4 {[%emt 0:00:26]} e5 {[%emt 0:02:46]} 2. Nc3 {[%emt 0:02:14]} Nf6 {[%emt 0:00:05]} 3. Nf3 {[%emt 0:05:14]} Nc6 {[%emt 0:00:22]} 4. d4 {[%emt 0:10:12]} exd4 {[%emt 0:00:51]} 5. Nxd4 {[%emt 0:02:08]} Bb4 {[%emt 0:00:03]} 6. a3 {[%emt 0:06:31]} Bxc3+ {[%emt 0:01:22]} 7. bxc3 {[%emt 0:00:06]} d6 {[%emt 0:11:51]} 8. g3 {[%emt 0:10:47]} O-O {[%emt 0:05:53]} 9. Nxc6 {[%emt 0:07:15]} bxc6 {[%emt 0:00:07]} 10. Bg2 {[%emt 0:00:08]} Qe8 {[%emt 0:08:33]} 11. O-O {[%emt 0:07:29]} Bd7 {[%emt 0:02:49]} 12. Qd3 {[%emt 0:12:05]} Qe5 {[%emt 0:22:04]} 13. Re1 {[%emt 0:09:37]} Rab8 {[%emt 0:02:44]} 14. Be3 {[%emt 0:04:33]} c5 {[%emt 0:00:30]} 15. Bf4 {[%emt 0:03:37]} Qh5 {[%emt 0:00:55]} 16. Rab1 {[%emt 0:03:35]} Rb6 {[%emt 0:03:06]} 17. Rxb6 {[%emt 0:04:56]} axb6 {[%emt 0:00:11]} 18. e4 {[%emt 0:01:25]} Re8 {[%emt 0:01:09]} 19. Ra1 {[%emt 0:02:38]} g5 {[%emt 0:10:14]} 20. Be3 {[%emt 0:00:37]} Ng4 {[%emt 0:00:17]} 21. h3 {[%emt 0:00:22]} Ne5 {[%emt 0:00:07]} 22. Qf1 {[%emt 0:01:38]} Nf3+ {[%emt 0:07:07]} 23. Bxf3 {[%emt 0:00:42]} Qxf3 {[%emt 0:00:05]} 24. Bxg5 {[%emt 0:01:12]} Qxe4 {[%emt 0:00:26]} 25. Qg2 {[%emt 0:00:26]} Qxc4 {[%emt 0:00:55]} 26. Qf3 {[%emt 0:00:31]} Bxh3 {[%emt 0:01:06]} 27. Bf6 {[%emt 0:00:43]} Bg4 {[%emt 0:01:54]} 28. Qh1 {[%emt 0:00:03]} Qe4 {[%emt 0:03:17]} 29. Qh4 {[%emt 0:00:30]} Bf3 {[%emt 0:00:46]} 30. Qg5+ {[%emt 0:00:50]} Qg6 {[%emt 0:00:06]} 31. Qf4 {[%emt 0:00:07]} Qh5 {[%emt 0:02:05]} 32. Bh4 {[%emt 0:00:19]} Re4 {[%emt 0:01:41]} 33. Qf6 {[%emt 0:00:09]} Re6 {[%emt 0:01:52]} 34. Qd8+ {[%emt 0:00:18]} Kg7 {[%emt 0:00:05]} 35. Qxc7 {[%emt 0:01:43]} Qe5 {[%emt 0:00:45]} 36. Rf1 {[%emt 0:01:23]} Qf5 {[%emt 0:00:51]} 37. Kh2 {[%emt 0:00:18]} Be2 {[%emt 0:00:28]} 38. Rg1 {[%emt 0:00:15]} Qxf2+ {[%emt 0:00:31]} 39. Rg2 {[%emt 0:00:02]} Qf5 {[%emt 0:00:33]} 40. Kg1 {[%emt 0:01:47]} Qf1+ {[%emt 0:01:02]} 0-1

[Event "24th Hoogeschool Zeeland 2022"]
[Site "Vlissingen"]
[Date "2022.08.08"]
[Round "4.16"]
[White "Leenhouts, Koen"]
[Black "Warnaar, Alisha"]
[Result "1-0"]
[ECO "E81"]
[WhiteElo "2442"]
[BlackElo "2037"]
[Annotator "RC"]
[PlyCount "53"]
[EventDate "2022.08.05"]
[EventType "swiss"]
[EventCountry "NED"]
[SourceTitle "playchess.com"]
[Source "ChessBase"]
[SourceQuality "1"]
[TimeControl "40/5400+30:1800+30"]

1. d4 {[%emt 0:00:03]} Nf6 {[%emt 0:00:09]} 2. c4 {[%emt 0:00:09]} g6 {[%emt 0:00:12]} 3. Nc3 {[%emt 0:00:09]} Bg7 {[%emt 0:00:14]} 4. e4 {[%emt 0:00:13]} d6 {[%emt 0:00:18]} 5. f3 {[%emt 0:00:24]} O-O {[%emt 0:00:16]} 6. Bg5 {[%emt 0:00:13]} a6 {[%emt 0:00:28]} 7. Qd2 {[%emt 0:06:13]} Nbd7 {[%emt 0:02:51]} 8. Nh3 {[%emt 0:01:05]} c5 {[%emt 0:01:00]} 9. d5 {[%emt 0:00:14]} b5 {[%emt 0:00:57]} 10. cxb5 {[%emt 0:01:38]} Qa5 {[%emt 0:05:30]} 11. a4 {[%emt 0:06:17]} axb5 {[%emt 0:02:43]} 12. Bxb5 {[%emt 0:01:18]} Ba6 {[%emt 0:01:08]} 13. O-O {[%emt 0:07:37]} Bxb5 {[%emt 0:08:51]} 14. Nxb5 {[%emt 0:00:19]} Qxd2 {[%emt 0:00:37]} 15. Bxd2 {[%emt 0:00:04]} Nb6 {[%emt 0:01:00]} 16. b3 {[%emt 0:02:21]} Nfxd5 {[%emt 0:18:34]} 17. Rac1 {[%emt 0:14:27]} Nf6 {[%emt 0:01:41]} 18. e5 {[%emt 0:02:07]} dxe5 {[%emt 0:07:56]} 19. Rxc5 {[%emt 0:00:15]} Rfd8 {[%emt 0:01:13]} 20. Rc2 {[%emt 0:09:41]} e4 {[%emt 0:03:39]} 21. Nc7 {[%emt 0:16:21]} Rab8 {[%emt 0:07:18]} 22. a5 {[%emt 0:03:02]} Nbd5 {[%emt 0:03:16]} 23. Nxd5 {[%emt 0:00:37]} Rxd5 {[%emt 0:03:37]} 24. b4 {[%emt 0:06:25]} Rdb5 {[%emt 0:10:14]} 25. Rfc1 {[%emt 0:01:52]} h5 {[%emt 0:01:14]} 26. Rc8+ {[%emt 0:00:14]} Kh7 {[%emt 0:02:49]} 27. Ng5+ {[%emt 0:00:53]} 1-0

[Event "24th Hoogeschool Zeeland 2022"]
[Site "Vlissingen"]
[Date "2022.08.08"]
[Round "4.17"]
[White "Emans, Job"]
[Black "Seul, Georg"]
[Result "0-1"]
[ECO "E36"]
[WhiteElo "2057"]
[BlackElo "2367"]
[Annotator "RC"]
[PlyCount "50"]
[EventDate "2022.08.05"]
[EventType "swiss"]
[EventCountry "NED"]
[SourceTitle "playchess.com"]
[Source "ChessBase"]
[SourceQuality "1"]
[TimeControl "40/5400+30:1800+30"]

1. d4 {[%emt 0:00:05]} Nf6 {[%emt 0:00:05]} 2. c4 {[%emt 0:00:09]} e6 {[%emt 0:00:05]} 3. Nc3 {[%emt 0:00:10]} Bb4 {[%emt 0:00:05]} 4. Qc2 {[%emt 0:00:14]} d5 {[%emt 0:01:18]} 5. a3 {[%emt 0:00:42]} Bxc3+ {[%emt 0:00:13]} 6. Qxc3 {[%emt 0:00:06]} c5 {[%emt 0:00:35]} 7. dxc5 {[%emt 0:00:54]} d4 {[%emt 0:00:11]} 8. Qc2 {[%emt 0:01:43]} e5 {[%emt 0:03:15]} 9. e4 {[%emt 0:25:01]} a5 {[%emt 0:03:26]} 10. Rb1 {[%emt 0:04:50]} a4 {[%emt 0:00:52]} 11. Nf3 {[%emt 0:00:41]} Nc6 {[%emt 0:00:56]} 12. Bd3 {[%emt 0:08:09]} Nd7 {[%emt 0:00:51]} 13. O-O {[%emt 0:00:45]} Nxc5 {[%emt 0:00:35]} 14. Ne1 {[%emt 0:01:04]} O-O {[%emt 0:00:36]} 15. f4 {[%emt 0:02:24]} f5 {[%emt 0:11:43]} 16. fxe5 {[%emt 0:15:47]} Nxe5 {[%emt 0:11:54]} 17. Bf4 {[%emt 0:00:16]} Nexd3 {[%emt 0:25:57]} 18. Nxd3 {[%emt 0:00:06]} Nxd3 {[%emt 0:00:33]} 19. Qxd3 {[%emt 0:00:04]} fxe4 {[%emt 0:00:07]} 20. Qg3 {[%emt 0:00:40]} Bf5 {[%emt 0:01:18]} 21. Rbd1 {[%emt 0:01:22]} d3 {[%emt 0:11:51]} 22. Bd6 {[%emt 0:05:12]} Rf7 {[%emt 0:01:40]} 23. Qe5 {[%emt 0:01:47]} Qd7 {[%emt 0:01:43]} 24. c5 {[%emt 0:02:35]} Re8 {[%emt 0:00:38]} 25. Qd5 {[%emt 0:07:28]} e3 {[%emt 0:00:56]} 0-1

[Event "24th Hoogeschool Zeeland 2022"]
[Site "Vlissingen"]
[Date "2022.08.08"]
[Round "4.18"]
[White "Manukonda Arun"]
[Black "Bezemer, Arno"]
[Result "0-1"]
[ECO "D41"]
[WhiteElo "2021"]
[BlackElo "2278"]
[Annotator "RC"]
[PlyCount "78"]
[EventDate "2022.08.05"]
[EventType "swiss"]
[EventCountry "NED"]
[SourceTitle "playchess.com"]
[Source "ChessBase"]
[SourceQuality "1"]
[TimeControl "40/5400+30:1800+30"]

1. d4 {[%emt 0:01:39]} Nf6 {[%emt 0:00:09]} 2. c4 {[%emt 0:00:05]} e6 {[%emt 0:00:07]} 3. Nf3 {[%emt 0:00:39]} d5 {[%emt 0:00:07]} 4. Nc3 {[%emt 0:00:10]} c5 {[%emt 0:00:26]} 5. cxd5 {[%emt 0:00:08]} Nxd5 {[%emt 0:00:06]} 6. e4 {[%emt 0:00:53]} Nxc3 {[%emt 0:00:06]} 7. bxc3 {[%emt 0:00:06]} cxd4 {[%emt 0:00:09]} 8. cxd4 {[%emt 0:02:37]} Bb4+ {[%emt 0:00:34]} 9. Bd2 {[%emt 0:00:04]} Bxd2+ {[%emt 0:00:14]} 10. Qxd2 {[%emt 0:00:04]} O-O {[%emt 0:00:13]} 11. Be2 {[%emt 0:05:59]} Nd7 {[%emt 0:07:32]} 12. O-O {[%emt 0:03:19]} b6 {[%emt 0:00:11]} 13. e5 {[%emt 0:14:26]} Bb7 {[%emt 0:01:47]} 14. Rad1 {[%emt 0:02:06]} Rc8 {[%emt 0:04:33]} 15. Qf4 {[%emt 0:05:35]} h6 {[%emt 0:06:16]} 16. Nd2 {[%emt 0:04:07]} Qg5 {[%emt 0:20:28]} 17. Qxg5 {[%emt 0:01:55]} hxg5 {[%emt 0:00:03]} 18. Bb5 {[%emt 0:05:13]} Rc7 {[%emt 0:09:34]} 19. Nc4 {[%emt 0:14:50]} a6 {[%emt 0:01:34]} 20. Bxd7 {[%emt 0:01:49]} Rxc4 {[%emt 0:00:10]} 21. Rc1 {[%emt 0:08:09]} Rxd4 {[%emt 0:02:49]} 22. Rc7 {[%emt 0:01:24]} Bd5 {[%emt 0:00:54]} 23. a4 {[%emt 0:06:07]} Rd8 {[%emt 0:02:59]} 24. h3 {[%emt 0:04:39]} Bxg2 {[%emt 0:17:48]} 25. Kxg2 {[%emt 0:00:44]} R8xd7 {[%emt 0:00:08]} 26. Rxd7 {[%emt 0:00:46]} Rxd7 {[%emt 0:00:03]} 27. Rb1 {[%emt 0:00:05]} Rd4 {[%emt 0:00:13]} 28. Rxb6 {[%emt 0:01:08]} Rxa4 {[%emt 0:00:07]} 29. Kf3 {[%emt 0:01:19]} Kh7 {[%emt 0:00:16]} 30. Rb7 {[%emt 0:00:58]} Kg6 {[%emt 0:00:03]} 31. Ra7 {[%emt 0:00:04]} Ra3+ {[%emt 0:02:26]} 32. Ke4 {[%emt 0:04:22]} a5 {[%emt 0:01:50]} 33. f3 {[%emt 0:00:37]} a4 {[%emt 0:00:29]} 34. Ra6 {[%emt 0:00:20]} Ra1 {[%emt 0:00:27]} 35. Ke3 {[%emt 0:01:42]} a3 {[%emt 0:02:38]} 36. Kf2 {[%emt 0:00:09]} Kf5 {[%emt 0:02:49]} 37. Ra5 {[%emt 0:00:30]} Kf4 {[%emt 0:00:18]} 38. Ra7 {[%emt 0:00:38]} Kxe5 {[%emt 0:00:20]} 39. Ke2 {[%emt 0:10:35]} a2 {[%emt 0:19:04]} 0-1